bitfinex/quotes_SOLUSD_20251030
["timestamp","ask_amount","ask_price","bid_price","bid_amount"]
[1761799259556,0.68,194.35,194.29,5.10244241]
[1761799259765,5.78244241,194.35,194.29,5.10244241]
[1761799260268,0.68,194.35,194.3,5.10244241]
[1761799260470,0.68,194.35,194.32,5.10244241]
[1761799260676,0.68,194.35,194.25,20.592]
[1761799260966,5.10244241,194.26,194.06,2.71530453]
[1761799261144,5.10244241,194.25,194.19,5.10244241]
[1761799261337,5.10244241,194.23,194.16,5.10244241]
[1761799261539,5.10244241,194.22,194.16,5.10244241]
[1761799261937,50.0,194.31,194.16,5.10244241]
[1761799261938,50.68,194.31,194.21,5.10244241]
[1761799262143,5.10244241,194.29,194.23,5.10244241]
[1761799262450,5.10244241,194.24,194.11,9.78882769]
[1761799262648,5.10244241,194.22,194.16,5.10244241]
[1761799262849,5.10244241,194.21,194.15,5.10244241]
[1761799263077,5.10244241,194.2,194.14,5.10244241]
[1761799263251,5.10244241,194.17,194.06,5.35294422]
[1761799263442,0.68,194.16,194.06,5.3530254]
[1761799263646,5.10244241,194.12,194.06,0.2]
[1761799263849,5.10244241,194.09,194.06,0.2]
[1761799264076,0.68,194.09,194.06,0.2]
[1761799264378,5.10244241,194.07,194.03,0.2]
[1761799264540,5.10244241,194.04,194.03,0.2]
[1761799265043,5.78244241,194.04,194.03,0.2]
[1761799265245,5.78244241,194.04,193.94,5.10244241]
[1761799265544,5.10244241,193.99,193.93,5.10244241]
[1761799265762,0.68,194.03,193.92,5.10244241]
[1761799265763,5.10244241,193.98,193.92,5.10244241]
[1761799266346,0.68,194.0,193.93,5.10244241]
[1761799266347,5.10244241,193.99,193.93,5.10244241]
[1761799266563,20.592,194.06,193.95,5.10244241]
[1761799266868,5.10244241,193.99,193.92,5.10244241]
[1761799267080,5.10244241,193.98,193.88,0.51578295]
[1761799267247,5.78244241,193.97,193.87,10.30463725]
[1761799267570,5.10244241,193.99,193.9,20.592]
[1761799267958,0.68,194.01,193.95,5.10244241]
[1761799268184,0.68,194.01,193.9,21.10772975]
[1761799268185,5.10244241,194.0,193.94,5.10244241]
[1761799268474,5.10244241,194.13,194.01,20.592]
[1761799268672,5.10244241,194.08,193.98,0.67]
[1761799268847,9.78882769,194.13,194.03,5.10244241]
[1761799269054,0.68,194.23,194.12,5.10244241]
[1761799269252,0.68,194.23,194.18,5.10244241]
[1761799269461,50.0,194.29,194.19,5.10244241]
[1761799269657,25.71917163,194.41,194.19,5.10244241]
[1761799269658,5.10244241,194.36,194.2,0.51493305]
[1761799269860,0.68,194.35,194.3,5.10244241]
[1761799270076,0.68,194.35,194.31,5.10244241]
[1761799270267,70.592,194.33,194.17,1.18501261]
[1761799270468,50.0,194.34,194.26,5.10244241]
[1761799270650,50.68,194.33,194.25,5.10244241]
[1761799270976,50.0,194.29,194.16,5.10244241]
[1761799271160,50.0,194.29,194.16,20.592]
[1761799271357,50.0,194.23,194.16,7.80995286]
[1761799271564,50.0,194.21,194.13,7.80995286]
[1761799271786,20.592,194.11,193.99,0.67]
[1761799271968,20.592,194.11,194.06,7.80995286]
[1761799272155,7.80995286,194.09,194.02,7.80995286]
[1761799272673,8.48995286,194.09,193.98,20.592]
[1761799272979,0.68,194.09,194.03,7.80995286]
[1761799273154,0.7,194.08,194.0,7.80995286]
[1761799273463,7.80995286,194.05,193.94,5.15603963]
[1761799273665,7.80995286,194.04,193.97,7.80995286]
[1761799273868,7.80995286,194.0,193.91,5.15701749]
[1761799274180,7.80995286,194.03,193.97,7.80995286]
[1761799274352,7.80995286,194.03,193.94,20.592]
[1761799274554,0.7,194.04,193.98,7.80995286]
[1761799274769,7.80995286,194.03,193.96,7.80995286]
[1761799275282,7.80995286,194.02,193.95,28.40195286]
[1761799275786,8.50995286,194.03,193.95,20.592]
[1761799275955,0.7,194.07,193.98,7.80995286]
[1761799276154,0.7,194.06,193.96,20.592]
[1761799276367,7.80995286,194.05,193.98,7.80995286]
[1761799276572,0.7,194.06,193.96,20.592]
[1761799276573,7.80995286,194.03,193.96,20.592]
[1761799276768,0.7,194.06,193.92,0.14216157]
[1761799276769,7.80995286,194.01,193.94,7.80995286]
[1761799276980,7.80995286,194.02,193.95,28.40195286]
[1761799277183,7.80995286,194.0,193.88,9.78882769]
[1761799277390,7.80995286,194.0,193.92,7.80995286]
[1761799277564,0.7,194.01,193.92,7.80995286]
[1761799277764,7.80995286,194.0,193.93,7.80995286]
[1761799277965,7.80995286,194.0,193.91,20.592]
[1761799278162,7.80995286,193.98,193.88,9.78882769]
[1761799278403,8.50995286,193.99,193.92,7.80995286]
[1761799278600,0.7,193.99,193.92,7.80995286]
[1761799278765,8.50995286,193.99,193.92,7.80995286]
[1761799278966,8.50995286,194.03,193.93,20.592]
[1761799279202,7.80995286,193.98,193.9,7.80995286]
[1761799279380,7.80995286,193.98,193.9,20.592]
[1761799279577,0.7,194.01,193.93,7.80995286]
[1761799279779,7.80995286,194.0,193.93,7.80995286]
[1761799280387,7.80995286,193.98,193.91,7.80995286]
[1761799280566,50.0,194.06,193.91,7.80995286]
[1761799280567,0.7,194.05,193.94,7.80995286]
[1761799280765,8.50995286,194.05,193.98,7.80995286]
[1761799280966,0.7,194.05,193.92,31.74866582]
[1761799281268,4.2448486,194.29,194.03,7.80995286]
[1761799281269,7.80995286,194.09,194.03,7.80995286]
[1761799281467,7.80995286,194.09,193.97,30.38082769]
[1761799281468,8.50995286,194.09,194.02,7.80995286]
[1761799281669,0.7,194.13,194.0,20.592]
[1761799281871,7.80995286,194.11,194.04,7.80995286]
[1761799282094,0.7,194.13,194.0,20.592]
[1761799282095,7.80995286,194.09,194.02,7.80995286]
[1761799282406,0.7,194.12,194.05,7.80995286]
[1761799282573,7.80995286,194.12,194.06,7.80995286]
[1761799282767,7.80995286,194.09,193.98,1.33767863]
[1761799283071,7.80995286,194.09,194.0,20.592]
[1761799283289,0.67,194.08,193.99,7.80995286]
[1761799283599,7.80995286,194.07,194.0,7.80995286]
[1761799283804,0.67,194.08,193.98,20.592]
[1761799283805,7.80995286,194.05,193.98,28.40195286]
[1761799283971,0.67,194.07,194.01,7.80995286]
[1761799284176,8.47995286,194.07,194.01,7.80995286]
[1761799284988,0.67,194.07,194.01,7.80995286]
[1761799285197,8.47995286,194.07,194.0,7.80995286]
[1761799285391,7.80995286,194.06,194.0,7.80995286]
[1761799285567,0.67,194.07,194.0,7.80995286]
[1761799285768,8.47995286,194.07,194.01,7.80995286]
[1761799286101,0.67,194.07,194.01,7.80995286]
[1761799286278,0.67,194.07,193.98,25.74708713]
[1761799286477,8.47995286,194.07,194.01,7.80995286]
[1761799287102,8.47995286,194.07,193.98,25.74708713]
[1761799287290,8.47995286,194.07,194.0,7.80995286]
[1761799287615,8.47995286,194.07,194.01,7.80995286]
[1761799287808,7.80995286,194.04,193.98,20.592]
[1761799288008,0.67,194.06,193.98,20.592]
[1761799288009,0.67,194.06,193.98,7.80995286]
[1761799288172,8.47995286,194.06,194.0,7.80995286]
[1761799288372,0.67,194.09,194.01,7.80995286]
[1761799288597,7.80995286,194.07,193.96,0.51557022]
[1761799288902,0.67,194.09,193.96,0.51557022]
[1761799288903,7.80995286,194.06,193.96,20.592]
[1761799289079,7.80995286,194.05,193.99,7.80995286]
[1761799289396,0.67,194.08,193.97,20.592]
[1761799289712,7.80995286,194.03,193.97,20.592]
[1761799290002,7.80995286,194.02,193.96,7.80995286]
[1761799290204,7.80995286,194.02,193.9,0.68]
[1761799290405,7.80995286,193.98,193.89,9.78882769]
[1761799290571,7.80995286,193.98,193.92,7.80995286]
[1761799290771,0.67,194.01,193.94,7.80995286]
[1761799290977,7.80995286,193.99,193.93,7.80995286]
[1761799291296,7.80995286,193.98,193.91,7.80995286]
[1761799291521,7.80995286,193.98,193.92,7.80995286]
[1761799291727,0.67,193.97,193.87,5.58290577]
[1761799292034,7.80995286,193.96,193.87,5.15788961]
[1761799292336,7.80995286,193.95,193.89,7.80995286]
[1761799292548,7.80995286,193.9,193.86,0.2]
[1761799292706,7.80995286,193.91,193.86,0.2]
[1761799292903,7.80995286,193.92,193.86,8.00995286]
[1761799293106,7.80995286,193.91,193.86,0.2]
[1761799293530,8.47995286,193.91,193.86,0.2]
[1761799293732,8.47995286,193.9,193.86,0.2]
[1761799294333,0.67,193.9,193.86,8.00995286]
[1761799294644,7.80995286,193.91,193.86,0.2]
[1761799295155,8.47995286,193.91,193.86,0.2]
[1761799295336,7.80995286,193.89,193.86,0.2]
[1761799295539,7.80995286,193.88,193.86,0.2]
[1761799295737,7.80995286,193.89,193.86,0.2]
[1761799296036,7.80995286,193.87,193.79,0.2]
[1761799296255,7.80995286,193.8,193.79,0.2]
[1761799296737,7.80995286,193.81,193.79,0.2]
[1761799296943,7.80995286,193.8,193.79,0.2]
[1761799297110,8.47995286,193.8,193.79,0.2]
[1761799297450,0.67,193.8,193.79,0.2]
[1761799297737,0.67,193.8,193.75,0.2]
[1761799297738,20.592,193.77,193.75,0.2]
[1761799297946,7.80995286,193.76,193.75,0.2]
[1761799298239,7.80995286,193.76,193.74,7.13273729]
[1761799298240,50.14216157,193.75,193.74,6.56273729]
[1761799298428,50.14216157,193.75,193.71,1e-08]
[1761799298429,50.0,193.73,193.71,1e-08]
[1761799298741,1.99999999,193.76,193.66,0.2]
[1761799298742,20.592,193.69,193.66,0.2]
[1761799298966,7.80995286,193.67,193.66,0.2]
[1761799300040,20.592,193.69,193.66,0.2]
[1761799300217,7.80995286,193.67,193.66,0.2]
[1761799300943,28.54411443,193.67,193.66,0.2]
[1761799301315,34.94649511,193.67,193.66,0.2]
[1761799301518,29.7830728,193.67,193.66,0.2]
[1761799301908,29.64091123,193.67,193.66,0.2]
[1761799302521,79.7830728,193.67,193.66,0.2]
[1761799302709,29.7830728,193.67,193.66,0.2]
[1761799302930,20.73416157,193.67,193.66,0.2]
[1761799303143,29.64091123,193.67,193.66,0.2]
[1761799303356,7.64205613,193.67,193.66,0.2]
[1761799303646,7.7842177,193.67,193.66,0.2]
[1761799303817,57.7842177,193.67,193.66,0.2]
[1761799304012,57.7842177,193.67,193.49,0.51682257]
[1761799304013,50.0,193.64,193.47,0.516876]
[1761799304228,50.0,193.64,193.54,7.64205613]
[1761799304229,7.64205613,193.61,193.54,7.64205613]
[1761799304418,7.64205613,193.59,193.53,7.64205613]
[1761799304927,7.64205613,193.59,193.48,10.30567697]
[1761799304928,7.64205613,193.54,193.48,8.32205613]
[1761799305130,0.14216157,193.6,193.48,0.68]
[1761799305317,5.16604733,193.58,193.48,0.68]
[1761799305516,7.64205613,193.53,193.48,0.68]
[1761799305919,0.14216157,193.6,193.48,8.32205613]
[1761799306139,7.64205613,193.55,193.49,7.64205613]
[1761799306323,7.64205613,193.54,193.48,8.32205613]
[1761799306538,7.64205613,193.53,193.48,0.68]
[1761799306951,7.64205613,193.49,193.31,0.51730381]
[1761799307254,7.64205613,193.52,193.46,7.64205613]
[1761799307424,20.592,193.57,193.36,1.19717004]
[1761799307425,7.64205613,193.51,193.45,7.64205613]
[1761799307760,7.64205613,193.52,193.46,7.64205613]
[1761799307944,7.64205613,193.51,193.45,7.64205613]
[1761799308137,7.64205613,193.52,193.46,7.64205613]
[1761799308453,7.64205613,193.51,193.45,7.64205613]
[1761799308661,7.64205613,193.54,193.44,9.78882769]
[1761799308838,7.64205613,193.51,193.45,7.64205613]
[1761799309041,7.64205613,193.46,193.42,0.68]
[1761799309351,7.64205613,193.47,193.42,0.68]
[1761799309559,7.64205613,193.45,193.42,0.68]
[1761799309762,7.64205613,193.45,193.39,7.64205613]
[1761799309763,7.64205613,193.43,193.38,0.68]
[1761799309931,7.64205613,193.39,193.33,0.88]
[1761799310126,20.592,193.43,193.33,0.88]
[1761799310331,20.592,193.43,193.33,0.2]
[1761799310332,7.64205613,193.37,193.33,0.2]
[1761799310524,7.64205613,193.36,193.33,0.2]
[1761799313167,9.93098926,193.39,193.33,0.2]
[1761799313365,7.64205613,193.36,193.33,0.2]
[1761799314465,7.7842177,193.36,193.33,0.2]
[1761799314666,20.73416157,193.36,193.33,0.2]
[1761799314830,88.16504539,193.36,193.33,0.2]
[1761799315236,95.80710152,193.36,193.33,0.2]
[1761799315536,38.16504539,193.36,193.33,0.2]
[1761799315740,7.64205613,193.36,193.33,0.2]
[1761799315938,50.0,193.43,193.33,0.2]
[1761799316137,7.64205613,193.41,193.35,7.65273729]
[1761799316365,7.64205613,193.39,193.35,6.93273729]
[1761799316571,7.64205613,193.4,193.35,6.93273729]
[1761799316774,7.64205613,193.43,193.36,8.36205613]
[1761799316945,7.64205613,193.43,193.37,7.64205613]
[1761799317150,7.64205613,193.42,193.37,0.72]
[1761799317360,7.64205613,193.44,193.38,0.72]
[1761799317761,7.64205613,193.47,193.4,7.64205613]
[1761799318064,7.64205613,193.48,193.41,7.64205613]
[1761799318276,50.0,193.55,193.43,7.64205613]
[1761799318572,7.64205613,193.52,193.44,7.64205613]
[1761799318871,7.64205613,193.55,193.47,7.64205613]
[1761799319273,7.64205613,193.54,193.47,7.64205613]
[1761799319443,7.64205613,193.54,193.47,8.36205613]
[1761799319644,7.64205613,193.55,193.48,0.72]
[1761799319871,25.75791716,193.58,193.48,0.72]
[1761799320073,100.0,193.59,193.48,0.72]
[1761799320373,25.81865577,193.66,193.4,0.72]
[1761799320374,7.64205613,193.49,193.4,0.72]
[1761799320574,7.64205613,193.49,193.41,7.64205613]
[1761799320788,100.0,193.6,193.45,7.64205613]
[1761799320951,100.0,193.6,193.42,20.592]
[1761799320952,7.64205613,193.55,193.47,7.64205613]
[1761799321150,0.14216157,193.58,193.48,0.72]
[1761799321369,7.64205613,193.56,193.48,8.36205613]
[1761799321569,5.16432098,193.64,193.52,7.64205613]
[1761799321879,7.64205613,193.53,193.47,21.312]
[1761799322083,7.64205613,193.52,193.47,0.72]
[1761799322264,7.64205613,193.52,193.34,7.64205613]
[1761799322265,7.64205613,193.49,193.43,0.72]
[1761799322471,0.14216157,193.51,193.43,0.72]
[1761799322787,7.64205613,193.52,193.43,8.36205613]
[1761799322964,7.64205613,193.53,193.45,7.64205613]
[1761799323294,100.0,193.59,193.46,20.592]
[1761799323582,7.64205613,193.52,193.46,20.592]
[1761799323783,7.64205613,193.49,193.44,0.72]
[1761799324088,7.64205613,193.46,193.4,0.72]
[1761799324455,50.0,193.54,193.44,7.64205613]
[1761799324653,7.64205613,193.52,193.45,8.36205613]
[1761799324883,28.23405613,193.54,193.47,7.64205613]
[1761799325388,7.64205613,193.55,193.48,8.36205613]
[1761799325549,7.64205613,193.58,193.5,7.64205613]
[1761799325752,7.64205613,193.59,193.51,8.36205613]
[1761799325981,9.78882769,193.62,193.53,7.64205613]
[1761799325982,7.64205613,193.6,193.53,7.64205613]
[1761799326181,7.64205613,193.59,193.53,0.72]
[1761799326381,112.91005971,193.65,193.54,8.36205613]
[1761799326382,7.64205613,193.62,193.54,8.36205613]
[1761799326587,7.64205613,193.62,193.55,7.64205613]
[1761799326773,7.64205613,193.63,193.55,0.72]
[1761799326972,7.64205613,193.62,193.55,0.72]
[1761799327179,7.7842177,193.58,193.51,0.72]
[1761799327488,7.64205613,193.55,193.49,21.312]
[1761799327780,0.14216157,193.58,193.49,20.592]
[1761799327781,7.64205613,193.56,193.49,20.592]
[1761799327986,7.64205613,193.58,193.51,7.64205613]
[1761799328172,7.64205613,193.59,193.53,7.64205613]
[1761799328570,7.64205613,193.58,193.51,8.36205613]
[1761799328756,7.64205613,193.56,193.51,0.72]
[1761799328955,7.64205613,193.55,193.51,0.72]
[1761799329386,7.64205613,193.56,193.51,0.72]
[1761799329760,20.592,193.61,193.53,7.64205613]
[1761799329960,7.64205613,193.6,193.53,7.64205613]
[1761799330160,7.64205613,193.55,193.51,0.72]
[1761799330383,0.14216157,193.6,193.51,0.72]
[1761799330574,7.64205613,193.58,193.51,8.36205613]
[1761799331186,7.64205613,193.58,193.52,0.72]
[1761799331795,20.73416157,193.62,193.53,7.64205613]
[1761799331966,25.89897155,193.62,193.53,7.64205613]
[1761799332165,7.64205613,193.58,193.53,0.72]
[1761799332378,25.89897155,193.62,193.49,21.312]
[1761799332379,7.64205613,193.56,193.49,21.312]
[1761799332573,7.64205613,193.55,193.5,0.72]
[1761799332781,7.64205613,193.54,193.44,9.78882769]
[1761799332960,9.93098926,193.57,193.47,0.69]
[1761799333160,7.64205613,193.51,193.47,0.69]
[1761799333386,7.64205613,193.48,193.42,0.69]
[1761799333594,7.64205613,193.47,193.42,0.69]
[1761799333796,7.64205613,193.51,193.44,7.64205613]
[1761799333978,7.64205613,193.52,193.45,7.64205613]
[1761799334172,20.592,193.54,193.45,7.64205613]
[1761799334173,7.64205613,193.51,193.45,7.64205613]
[1761799334384,0.14216157,193.56,193.48,7.64205613]
[1761799334571,7.64205613,193.55,193.48,7.64205613]
[1761799334890,7.64205613,193.53,193.48,0.69]
[1761799335089,7.64205613,193.52,193.48,0.69]
[1761799335393,7.64205613,193.5,193.45,0.69]
[1761799335581,7.64205613,193.51,193.46,0.69]
[1761799336077,7.64205613,193.5,193.43,20.592]
[1761799336263,7.64205613,193.45,193.39,0.69]
[1761799336469,7.64205613,193.44,193.39,0.69]
[1761799336880,0.14216157,193.49,193.39,0.69]
[1761799337089,20.592,193.49,193.4,7.64205613]
[1761799337292,7.64205613,193.47,193.4,7.64205613]
[1761799337470,7.64205613,193.47,193.41,0.69]
[1761799337675,7.64205613,193.48,193.41,0.69]
[1761799337884,7.64205613,193.43,193.37,0.69]
[1761799338082,0.14216157,193.45,193.37,0.69]
[1761799338277,7.64205613,193.42,193.37,0.69]
[1761799338468,7.64205613,193.44,193.37,8.33205613]
[1761799338684,20.592,193.46,193.38,7.64205613]
[1761799338889,7.64205613,193.44,193.38,8.33205613]
[1761799339100,7.64205613,193.44,193.39,0.69]
[1761799339593,7.64205613,193.43,193.39,0.69]
[1761799340675,7.64205613,193.44,193.39,0.69]
[1761799341080,7.64205613,193.43,193.39,0.69]
[1761799341280,0.14216157,193.47,193.36,0.69]
[1761799341492,7.64205613,193.41,193.36,0.69]
[1761799341693,7.64205613,193.39,193.36,0.69]
[1761799342001,7.64205613,193.38,193.36,0.69]
[1761799342185,7.64205613,193.37,193.35,6.93273729]
[1761799342497,7.64205613,193.36,193.35,6.93273729]
[1761799344896,20.592,193.39,193.35,6.93273729]
[1761799345103,7.64205613,193.36,193.35,6.93273729]
[1761799345608,7.7842177,193.36,193.35,6.93273729]
[1761799346107,7.64205613,193.36,193.35,6.93273729]
[1761799346307,7.64205613,193.36,193.33,0.2]
[1761799346308,5.17196793,193.35,193.33,0.2]
[1761799346527,9.93098926,193.34,193.33,0.2]
[1761799346689,20.592,193.35,193.33,0.2]
[1761799346891,55.97513667,193.42,193.33,0.2]
[1761799347092,55.97513667,193.42,193.34,0.71]
[1761799347093,20.592,193.38,193.34,0.71]
[1761799347395,7.64205613,193.38,193.34,0.71]
[1761799347584,7.64205613,193.37,193.34,0.71]
[1761799348085,25.9054178,193.38,193.33,0.2]
[1761799348296,7.64205613,193.35,193.33,0.2]
[1761799348487,25.9054178,193.38,193.33,0.2]
[1761799348488,7.64205613,193.34,193.33,0.2]
[1761799348693,7.64205613,193.36,193.33,0.91]
[1761799348893,7.64205613,193.34,193.33,0.2]
[1761799349094,9.78882769,193.37,193.33,0.2]
[1761799349095,7.64205613,193.35,193.33,0.2]
[1761799349308,7.64205613,193.34,193.33,0.2]
[1761799350106,7.64205613,193.38,193.33,0.91]
[1761799350308,7.64205613,193.36,193.33,0.91]
[1761799350514,7.64205613,193.35,193.33,0.2]
[1761799350895,0.14216157,193.37,193.33,0.2]
[1761799351200,7.64205613,193.37,193.33,0.91]
[1761799352019,7.7842177,193.34,193.33,0.2]
[1761799352321,7.64205613,193.34,193.33,0.2]
[1761799352519,7.64205613,193.37,193.33,0.2]
[1761799352707,7.64205613,193.38,193.33,0.2]
[1761799352903,7.64205613,193.37,193.33,0.2]
[1761799353309,7.64205613,193.34,193.33,0.2]
[1761799354317,7.7842177,193.34,193.33,0.2]
[1761799354521,7.64205613,193.35,193.33,0.2]
[1761799354692,7.64205613,193.36,193.33,0.91]
[1761799355400,7.7842177,193.34,193.33,0.2]
[1761799356121,100.97933696,193.34,193.33,0.2]
[1761799356312,80.38733696,193.34,193.33,0.2]
[1761799356505,0.14216157,193.27,193.23,0.2]
[1761799356718,7.64205613,193.24,193.23,0.2]
[1761799356934,20.592,193.28,193.24,0.71]
[1761799357099,7.64205613,193.3,193.24,0.71]
[1761799357304,0.14216157,193.32,193.24,0.71]
[1761799357526,20.73416157,193.32,193.24,0.71]
[1761799357900,7.64205613,193.32,193.25,7.64205613]
[1761799358100,7.64205613,193.31,193.24,8.35205613]
[1761799358328,0.14216157,193.35,193.24,8.35205613]
[1761799358501,7.64205613,193.3,193.25,0.71]
[1761799358701,7.64205613,193.32,193.25,8.35205613]
[1761799358902,5.31419391,193.35,193.25,8.35205613]
[1761799359122,5.31419391,193.35,193.26,8.35205613]
[1761799359309,7.64205613,193.32,193.26,8.35205613]
[1761799359511,7.64205613,193.34,193.27,0.71]
[1761799359728,7.64205613,193.28,193.23,0.2]
[1761799359941,7.64205613,193.27,193.23,0.2]
[1761799360117,7.64205613,193.29,193.24,0.71]
[1761799360300,7.64205613,193.27,193.24,0.71]
[1761799361033,20.592,193.33,193.24,0.71]
[1761799361332,0.14216157,193.32,193.24,8.35205613]
[1761799361509,7.64205613,193.3,193.24,0.71]
[1761799361828,7.64205613,193.28,193.24,0.71]
[1761799362035,7.64205613,193.27,193.23,0.2]
[1761799362202,7.64205613,193.25,193.23,0.2]
[1761799362402,70.592,193.31,193.23,0.2]
[1761799362403,7.64205613,193.26,193.23,0.2]
[1761799362624,7.64205613,193.27,193.23,0.91]
[1761799363017,7.64205613,193.27,193.24,0.71]
[1761799363220,7.64205613,193.28,193.24,0.71]
[1761799363522,5.15085916,193.26,193.23,0.2]
[1761799363828,25.90721539,193.31,193.23,0.91]
[1761799363829,5.15085916,193.25,193.23,0.91]
[1761799364027,5.15085916,193.26,193.23,0.91]
[1761799364240,5.15085916,193.27,193.24,0.71]
[1761799364430,5.15085916,193.29,193.24,0.71]
[1761799364633,25.74285916,193.29,193.24,0.71]
[1761799364941,5.15085916,193.29,193.24,0.71]
[1761799365749,50.0,193.4,193.24,5.88478777]
[1761799365913,5.15085916,193.3,193.24,0.71]
[1761799366111,5.15085916,193.3,193.25,0.71]
[1761799366308,50.0,193.38,193.25,0.71]
[1761799366309,5.15085916,193.38,193.3,5.17330574]
[1761799366551,5.15085916,193.38,193.32,5.15085916]
[1761799366854,5.15085916,193.39,193.32,5.15085916]
[1761799367159,5.15085916,193.39,193.33,5.86085916]
[1761799367332,5.29302073,193.38,193.33,0.71]
[1761799367521,5.15085916,193.36,193.3,0.71]
[1761799367722,5.15085916,193.38,193.31,5.15085916]
[1761799368045,5.15085916,193.42,193.34,5.15085916]
[1761799368246,5.15085916,193.42,193.35,5.15085916]
[1761799368417,5.15085916,193.42,193.34,5.15085916]
[1761799368621,10.32097138,193.42,193.35,0.71]
[1761799369431,5.15085916,193.4,193.35,0.71]
[1761799369933,5.15085916,193.39,193.35,0.71]
[1761799370322,10.32195599,193.39,193.35,0.71]
[1761799370516,10.32195599,193.39,193.32,5.15085916]
[1761799370517,5.17109683,193.39,193.32,0.71]
[1761799370723,0.14216157,193.38,193.3,0.71]
[1761799371030,0.14216157,193.38,193.26,9.78882769]
[1761799371031,5.15085916,193.36,193.31,0.71]
[1761799371250,55.17027946,193.42,193.31,5.86085916]
[1761799371419,20.592,193.39,193.31,5.86085916]
[1761799371624,20.592,193.39,193.32,5.86085916]
[1761799372066,19.872,193.39,193.34,5.15085916]
[1761799372262,0.72,193.48,193.38,5.15085916]
[1761799372467,0.72,193.48,193.35,10.30602448]
[1761799372468,0.72,193.48,193.41,20.592]
[1761799372764,5.15085916,193.44,193.4,20.592]
[1761799372957,5.15085916,193.46,193.4,20.592]
[1761799373147,5.87085916,193.48,193.4,20.592]
[1761799373345,5.87085916,193.48,193.41,5.15085916]
[1761799373654,0.68,193.52,193.45,5.15085916]
[1761799373827,5.16690525,193.54,193.34,0.69]
[1761799373828,55.15085916,193.47,193.34,0.69]
[1761799374031,55.15085916,193.47,193.37,20.592]
[1761799374032,5.15085916,193.41,193.37,20.592]
[1761799374235,5.16956162,193.44,193.35,5.15085916]
[1761799374436,5.16956162,193.44,193.35,20.592]
[1761799374437,5.15085916,193.41,193.35,20.592]
[1761799374853,0.68,193.43,193.35,20.592]
[1761799375049,5.15085916,193.4,193.33,25.74285916]
[1761799375761,0.68,193.39,193.3,5.15085916]
[1761799375958,0.14216157,193.42,193.33,20.592]
[1761799376162,0.14216157,193.42,193.27,0.69]
[1761799376163,5.15085916,193.36,193.27,0.69]
[1761799376459,20.592,193.39,193.28,5.15085916]
[1761799376460,5.15085916,193.35,193.28,5.15085916]
[1761799376644,5.15085916,193.32,193.27,0.69]
[1761799376843,5.15085916,193.32,193.25,5.15085916]
[1761799377058,5.15085916,193.31,193.25,5.15085916]
[1761799377248,5.15085916,193.31,193.25,25.74285916]
[1761799378056,0.14216157,193.37,193.26,5.84085916]
[1761799378057,5.15085916,193.32,193.26,5.84085916]
[1761799378273,5.15085916,193.3,193.24,5.15085916]
[1761799378474,5.15085916,193.27,193.23,0.2]
[1761799378765,0.68,193.32,193.23,0.2]
[1761799378766,5.15085916,193.26,193.23,0.2]
[1761799378943,5.15085916,193.27,193.23,0.2]
[1761799379142,5.15085916,193.28,193.23,0.2]
[1761799379541,5.15085916,193.31,193.25,25.74285916]
[1761799379846,20.592,193.34,193.26,5.15085916]
[1761799380052,20.592,193.36,193.26,10.47882769]
[1761799380279,5.15085916,193.36,193.3,5.15085916]
[1761799380443,5.15085916,193.37,193.29,20.592]
[1761799380762,0.68,193.38,193.31,5.15085916]
[1761799380969,5.15085916,193.37,193.31,5.15085916]
[1761799381269,5.15085916,193.34,193.27,5.15085916]
[1761799381585,20.592,193.34,193.23,0.2]
[1761799381892,3.32957572,193.39,193.23,0.2]
[1761799381893,20.73416157,193.3,193.23,0.2]
[1761799382195,0.14216157,193.35,193.26,5.15085916]
[1761799382362,5.15085916,193.35,193.28,5.15085916]
[1761799382564,5.15085916,193.36,193.29,5.15085916]
[1761799382763,5.15085916,193.35,193.28,5.15085916]
[1761799383193,0.68,193.37,193.25,20.592]
[1761799383194,0.68,193.34,193.25,20.592]